[Event "FIDE Womens Grand Swiss 2021"]
[Site "Riga"]
[Date "2021.10.27"]
[Round "1.2"]
[White "Dzagnidze, Nana"]
[Black "Girya, Olga"]
[Result "1-0"]
[ECO "E06"]
[WhiteElo "2524"]
[BlackElo "2410"]
[Annotator "ChessBase"]
[PlyCount "115"]
[EventDate "2021.10.27"]
[EventType "swiss"]
[EventCountry "LAT"]
[Tiebreak "Cut1 Buchholz+Sonneborn-Berger (Swiss)"]
[SourceTitle "playchess.com"]
[Source "ChessBase"]
[SourceQuality "1"]
[TimeControl "40/6000+30:20/3000+30:900+30"]

1. Nf3 {[%emt 0:10:06]} Nf6 {[%emt 0:10:11]} 2. c4 {[%emt 0:00:21]} e6 {
[%emt 0:00:06]} 3. g3 {[%emt 0:01:22]} d5 {[%emt 0:00:13]} 4. d4 {[%emt 0:00:
55]} Be7 {[%emt 0:00:23]} 5. Bg2 {[%emt 0:00:07]} O-O {[%emt 0:00:06]} 6. O-O {
[%emt 0:00:11]} dxc4 {[%emt 0:00:04]} 7. Qc2 {[%emt 0:00:16]} a6 {[%emt 0:00:
38]} 8. a4 {[%emt 0:00:38]} Bd7 {[%emt 0:00:35]} 9. Qxc4 {[%emt 0:00:52]} Bc6 {
[%emt 0:00:24]} 10. Bf4 {[%emt 0:00:17]} Bd6 {[%emt 0:03:20]} 11. Qc1 {[%emt 0:
01:08]} a5 {[%emt 0:01:28]} 12. Nc3 {[%emt 0:01:01]} Na6 {[%emt 0:00:43]} 13.
Rd1 {[%emt 0:08:55]} Nb4 {[%emt 0:00:44]} 14. Ne5 {[%emt 0:05:06]} Bxg2 {
[%emt 0:00:29]} 15. Kxg2 {[%emt 0:00:02]} Nfd5 {[%emt 0:08:19]} 16. Bd2 {
[%emt 0:12:30]} c5 {[%emt 0:20:07]} 17. Nb5 {[%emt 0:05:24]} cxd4 {[%emt 0:01:
45]} 18. Bxb4 {[%emt 0:00:22]} axb4 {[%emt 0:10:15]} 19. Nc4 {[%emt 0:00:26]}
Bc5 {[%emt 0:00:34]} 20. Nxd4 {[%emt 0:02:41]} Bxd4 {[%emt 0:02:00]} 21. Rxd4 {
[%emt 0:00:15]} Qf6 {[%emt 0:05:01]} 22. e3 {[%emt 0:02:31]} Rfd8 {[%emt 0:15:
12]} 23. Qd1 {[%emt 0:15:06]} h6 {[%emt 0:02:43]} 24. a5 {[%emt 0:12:59]} Rac8
{[%emt 0:09:18]} 25. Rc1 {[%emt 0:04:29]} Qe7 {[%emt 0:03:52]} 26. e4 {[%emt 0:
03:43]} Nf6 {[%emt 0:00:19]} 27. Nb6 {[%emt 0:01:41]} Rxc1 {[%emt 0:02:13]} 28.
Rxd8+ {[%emt 0:00:11]} Kh7 {[%emt 0:00:05]} 29. Qxc1 {[%emt 0:05:22]} Qxd8 {
[%emt 0:00:02]} 30. e5 {[%emt 0:00:06]} Nd5 {[%emt 0:02:36]} 31. Qc8 {[%emt 0:
07:58]} Qg5 {[%emt 0:01:14]} 32. Nxd5 {[%emt 0:00:26]} exd5 {[%emt 0:00:52]}
33. Qxb7 {[%emt 0:00:06]} Qxe5 {[%emt 0:00:37]} 34. Qxb4 {[%emt 0:00:14]} d4 {
[%emt 0:02:22]} 35. Qd2 {[%emt 0:00:52]} Qd5+ {[%emt 0:00:51]} 36. Kg1 {
[%emt 0:01:59]} d3 {[%emt 0:00:21]} 37. a6 {[%emt 0:00:12]} Qc4 {[%emt 0:07:51]
} 38. a7 {[%emt 0:00:13]} Qc2 {[%emt 0:00:11]} 39. Qc3 {[%emt 0:06:49]} Qxc3 {
[%emt 0:00:05]} 40. bxc3 {[%emt 0:00:03]} d2 {[%emt 0:00:04]} 41. a8=Q {
[%emt 0:50:07]} d1=Q+ {[%emt 0:50:03]} 42. Kg2 {[%emt 0:00:06]} Qd3 {[%emt 0:
00:00]} 43. Qc6 {[%emt 0:00:00]} g5 {[%emt 0:00:00]} 44. c4 {[%emt 0:00:00]} f5
{[%emt 0:00:00]} 45. Qd5 {[%emt 0:00:00]} Qc2 {[%emt 0:00:00]} 46. h3 {[%emt 0:
00:00]} Kg7 {[%emt 0:00:00]} 47. c5 {[%emt 0:00:00]} h5 {[%emt 0:00:00]} 48. c6
{[%emt 0:00:00]} g4 {[%emt 0:00:00]} 49. h4 {[%emt 0:00:00]} Kf6 {[%emt 0:00:
47]} 50. Qd6+ {[%emt 0:00:00]} Kf7 {[%emt 0:00:06]} 51. c7 {[%emt 0:00:00]}
Qe4+ {[%emt 0:00:20]} 52. Kf1 {[%emt 0:00:00]} Qc4+ {[%emt 0:03:48]} 53. Ke1 {
[%emt 0:00:00]} Qc1+ {[%emt 0:02:58]} 54. Ke2 {[%emt 0:00:00]} Qc2+ {[%emt 0:
00:07]} 55. Ke3 {[%emt 0:00:00]} Qc1+ {[%emt 0:00:31]} 56. Kd4 {[%emt 0:00:00]}
Qb2+ {[%emt 0:00:33]} 57. Kc5 {[%emt 0:02:10]} Qxf2+ {[%emt 0:00:56]} 58. Qd4 {
[%emt 0:00:48]} 1-0

[Event "FIDE Womens Grand Swiss 2021"]
[Site "Riga"]
[Date "2021.10.27"]
[Round "1.5"]
[White "Cyfka, Karina"]
[Black "Shuvalova, Polina"]
[Result "0-1"]
[ECO "D37"]
[WhiteElo "2409"]
[BlackElo "2509"]
[Annotator "ChessBase"]
[PlyCount "110"]
[EventDate "2021.10.27"]
[EventType "swiss"]
[EventCountry "LAT"]
[Tiebreak "Cut1 Buchholz+Sonneborn-Berger (Swiss)"]
[SourceTitle "playchess.com"]
[Source "ChessBase"]
[SourceQuality "1"]
[TimeControl "40/6000+30:20/3000+30:900+30"]

1. d4 {[%emt 0:10:06]} Nf6 {[%emt 0:10:10]} 2. c4 {[%emt 0:00:17]} e6 {[%emt 0:
00:06]} 3. Nf3 {[%emt 0:00:20]} d5 {[%emt 0:00:06]} 4. Nc3 {[%emt 0:00:50]}
dxc4 {[%emt 0:00:11]} 5. e3 {[%emt 0:02:04]} a6 {[%emt 0:00:10]} 6. a4 {
[%emt 0:00:15]} b6 {[%emt 0:01:09]} 7. Bxc4 {[%emt 0:02:08]} Bb7 {[%emt 0:00:
08]} 8. O-O {[%emt 0:02:20]} Bb4 {[%emt 0:00:05]} 9. Qe2 {[%emt 0:04:11]} O-O {
[%emt 0:00:50]} 10. Rd1 {[%emt 0:08:05]} Qe7 {[%emt 0:02:30]} 11. Bd3 {[%emt 0:
02:56]} Nbd7 {[%emt 0:00:42]} 12. e4 {[%emt 0:08:04]} e5 {[%emt 0:00:45]} 13.
Bg5 {[%emt 0:11:01]} exd4 {[%emt 0:08:28]} 14. Nd5 {[%emt 0:11:05]} Bxd5 {
[%emt 0:01:31]} 15. exd5 {[%emt 0:00:05]} Qxe2 {[%emt 0:11:10]} 16. Bxe2 {
[%emt 0:00:02]} h6 {[%emt 0:12:40]} 17. Bxf6 {[%emt 0:05:31]} Nxf6 {[%emt 0:00:
34]} 18. Nxd4 {[%emt 0:00:13]} g6 {[%emt 0:02:51]} 19. Bf3 {[%emt 0:06:21]} Bd6
{[%emt 0:01:46]} 20. Nc6 {[%emt 0:07:12]} Rfe8 {[%emt 0:02:02]} 21. Re1 {
[%emt 0:02:01]} g5 {[%emt 0:08:27]} 22. g3 {[%emt 0:02:23]} Kg7 {[%emt 0:02:19]
} 23. Kf1 {[%emt 0:01:18]} g4 {[%emt 0:02:05]} 24. Bg2 {[%emt 0:00:37]} h5 {
[%emt 0:08:24]} 25. a5 {[%emt 0:08:07]} b5 {[%emt 0:03:26]} 26. Rxe8 {[%emt 0:
02:45]} Rxe8 {[%emt 0:00:23]} 27. Re1 {[%emt 0:00:05]} Rh8 {[%emt 0:00:20]} 28.
Nd4 {[%emt 0:02:13]} Nd7 {[%emt 0:05:31]} 29. h3 {[%emt 0:07:30]} Ne5 {[%emt 0:
06:09]} 30. b3 {[%emt 0:00:50]} Kf6 {[%emt 0:01:06]} 31. Re4 {[%emt 0:01:20]}
gxh3 {[%emt 0:04:29]} 32. Bxh3 {[%emt 0:00:24]} Nd3 {[%emt 0:00:16]} 33. Re3 {
[%emt 0:00:47]} Nc5 {[%emt 0:02:22]} 34. Bg2 {[%emt 0:02:57]} h4 {[%emt 0:00:
39]} 35. Rf3+ {[%emt 0:00:35]} Kg6 {[%emt 0:00:36]} 36. g4 {[%emt 0:00:33]} Ne4
{[%emt 0:03:54]} 37. Rf5 {[%emt 0:00:39]} Re8 {[%emt 0:00:49]} 38. Nf3 {
[%emt 0:00:27]} Bg3 {[%emt 0:05:01]} 39. Ne5+ {[%emt 0:00:39]} Rxe5 {[%emt 0:
01:58]} 40. Rxe5 {[%emt 0:00:09]} Nd2+ {[%emt 0:02:35]} 41. Ke2 {[%emt 0:50:08]
} Bxe5 {[%emt 0:50:16]} 42. Kxd2 {[%emt 0:00:06]} Bd6 {[%emt 0:00:00]} 43. Ke2
{[%emt 0:00:00]} Kg5 {[%emt 0:00:00]} 44. Kf3 {[%emt 0:00:00]} Bb4 {[%emt 0:00:
00]} 45. Bf1 {[%emt 0:00:00]} Bxa5 {[%emt 0:00:00]} 46. Bd3 {[%emt 0:00:00]}
Bb6 {[%emt 0:00:00]} 47. Bf5 {[%emt 0:00:00]} Kf6 {[%emt 0:00:00]} 48. Bc8 {
[%emt 0:00:00]} a5 {[%emt 0:00:00]} 49. Bd7 {[%emt 0:00:00]} a4 {[%emt 0:00:00]
} 50. bxa4 {[%emt 0:00:00]} b4 {[%emt 0:00:00]} 51. a5 {[%emt 0:00:00]} Bxa5 {
[%emt 0:00:00]} 52. Kf4 {[%emt 0:00:00]} b3 {[%emt 0:00:00]} 53. g5+ {[%emt 0:
00:00]} Ke7 {[%emt 0:00:00]} 54. Bf5 {[%emt 0:00:00]} Kd6 {[%emt 0:00:00]} 55.
Ke4 {[%emt 0:00:38]} b2 {[%emt 0:00:00]} 0-1

[Event "FIDE Womens Grand Swiss 2021"]
[Site "Riga"]
[Date "2021.10.27"]
[Round "1.6"]
[White "Abdumalik, Zhansaya"]
[Black "Garifullina, Leya"]
[Result "1/2-1/2"]
[ECO "B90"]
[WhiteElo "2507"]
[BlackElo "2409"]
[Annotator "ChessBase"]
[PlyCount "130"]
[EventDate "2021.10.27"]
[EventType "swiss"]
[EventCountry "LAT"]
[Tiebreak "Cut1 Buchholz+Sonneborn-Berger (Swiss)"]
[SourceTitle "playchess.com"]
[Source "ChessBase"]
[SourceQuality "1"]
[TimeControl "40/6000+30:20/3000+30:900+30"]

1. e4 {[%emt 0:10:03]} c5 {[%emt 0:10:08]} 2. Nf3 {[%emt 0:00:14]} d6 {[%emt 0:
00:10]} 3. d4 {[%emt 0:00:04]} cxd4 {[%emt 0:00:10]} 4. Nxd4 {[%emt 0:00:03]}
Nf6 {[%emt 0:00:09]} 5. Nc3 {[%emt 0:00:04]} a6 {[%emt 0:00:12]} 6. a4 {
[%emt 0:00:04]} e5 {[%emt 0:08:36]} 7. Nf3 {[%emt 0:00:09]} Be7 {[%emt 0:00:35]
} 8. g3 {[%emt 0:01:18]} O-O {[%emt 0:05:38]} 9. Bg2 {[%emt 0:00:15]} Be6 {
[%emt 0:01:34]} 10. O-O {[%emt 0:01:37]} Nc6 {[%emt 0:01:05]} 11. Nh4 {[%emt 0:
00:23]} Nd4 {[%emt 0:04:50]} 12. Re1 {[%emt 0:00:07]} Rb8 {[%emt 0:12:39]} 13.
a5 {[%emt 0:16:08]} b6 {[%emt 0:04:28]} 14. axb6 {[%emt 0:01:04]} Qxb6 {
[%emt 0:00:17]} 15. Qd3 {[%emt 0:08:26]} Ng4 {[%emt 0:10:37]} 16. Rf1 {[%emt 0:
08:57]} Rfc8 {[%emt 0:06:58]} 17. Ra4 {[%emt 0:10:48]} Bxh4 {[%emt 0:09:28]}
18. gxh4 {[%emt 0:00:07]} Qc6 {[%emt 0:00:38]} 19. Qd1 {[%emt 0:08:27]} Nf6 {
[%emt 0:02:40]} 20. Ra3 {[%emt 0:02:56]} Qd7 {[%emt 0:05:56]} 21. Re1 {[%emt 0:
03:21]} Rc6 {[%emt 0:03:24]} 22. Re3 {[%emt 0:04:29]} Kh8 {[%emt 0:00:42]} 23.
Rg3 {[%emt 0:01:57]} Bg4 {[%emt 0:02:20]} 24. f3 {[%emt 0:08:59]} Be6 {[%emt 0:
02:31]} 25. Bf1 {[%emt 0:00:18]} d5 {[%emt 0:03:00]} 26. h3 {[%emt 0:10:01]} h6
{[%emt 0:02:32]} 27. Kh2 {[%emt 0:03:47]} Nh5 {[%emt 0:01:50]} 28. Rg1 {
[%emt 0:00:09]} dxe4 {[%emt 0:00:25]} 29. fxe4 {[%emt 0:00:16]} Nf4 {[%emt 0:
00:20]} 30. Rg3 {[%emt 0:02:30]} Qe7 {[%emt 0:04:30]} 31. Ra5 {[%emt 0:03:04]}
Qxh4 {[%emt 0:01:05]} 32. Rxe5 {[%emt 0:01:17]} Rd8 {[%emt 0:00:44]} 33. Bd2 {
[%emt 0:03:58]} Rcd6 {[%emt 0:02:23]} 34. Nd5 {[%emt 0:00:14]} Nxd5 {[%emt 0:
01:50]} 35. exd5 {[%emt 0:00:10]} Bxd5 {[%emt 0:01:52]} 36. Bc3 {[%emt 0:01:49]
} Ba8 {[%emt 0:00:54]} 37. Bd3 {[%emt 0:00:40]} Qf4 {[%emt 0:00:19]} 38. Bxd4 {
[%emt 0:00:42]} Rxd4 {[%emt 0:00:19]} 39. Qe2 {[%emt 0:00:30]} g6 {[%emt 0:00:
43]} 40. Ree3 {[%emt 0:00:20]} h5 {[%emt 0:00:28]} 41. Kg1 {[%emt 0:50:21]} Qf6
{[%emt 0:51:01]} 42. Re8+ {[%emt 0:00:00]} Kg7 {[%emt 0:00:00]} 43. Re7 {
[%emt 0:00:00]} Kf8 {[%emt 0:00:00]} 44. Qe5 {[%emt 0:00:00]} Qxe5 {[%emt 0:00:
00]} 45. Rxe5 {[%emt 0:00:00]} R8d6 {[%emt 0:00:00]} 46. Kf2 {[%emt 0:00:00]}
Bd5 {[%emt 0:00:00]} 47. c3 {[%emt 0:00:00]} Ra4 {[%emt 0:00:00]} 48. b4 {
[%emt 0:00:00]} Be6 {[%emt 0:00:00]} 49. Ke3 {[%emt 0:00:00]} Ra3 {[%emt 0:00:
00]} 50. Rc5 {[%emt 0:00:00]} Kg7 {[%emt 0:00:00]} 51. Rc7 {[%emt 0:00:00]} Kf6
{[%emt 0:00:00]} 52. Rc5 {[%emt 0:00:00]} Ra1 {[%emt 0:00:00]} 53. Rf3+ {
[%emt 0:00:00]} Kg7 {[%emt 0:00:00]} 54. Rc7 {[%emt 0:04:13]} Rh1 {[%emt 0:00:
00]} 55. c4 {[%emt 0:00:52]} Rb6 {[%emt 0:01:11]} 56. b5 {[%emt 0:01:10]} axb5
{[%emt 0:00:03]} 57. cxb5 {[%emt 0:00:04]} Bd5 {[%emt 0:01:07]} 58. Rf2 {
[%emt 0:00:41]} Rxh3+ {[%emt 0:00:06]} 59. Kd4 {[%emt 0:00:03]} Rxd3+ {[%emt 0:
00:45]} 60. Kxd3 {[%emt 0:00:06]} Rxb5 {[%emt 0:00:03]} 61. Kd4 {[%emt 0:15:05]
} Be6 {[%emt 0:15:21]} 62. Re2 {[%emt 0:00:04]} Kh6 {[%emt 0:00:24]} 63. Rf2 {
[%emt 0:00:39]} h4 {[%emt 0:00:40]} 64. Ke4 {[%emt 0:00:03]} g5 {[%emt 0:00:23]
} 65. Rf6+ {[%emt 0:00:06]} Kh5 {[%emt 0:00:02]} 1/2-1/2

[Event "FIDE Womens Grand Swiss 2021"]
[Site "Riga"]
[Date "2021.10.27"]
[Round "1.8"]
[White "Kashlinskaya, Alina"]
[Black "Sargsyan, Anna M."]
[Result "0-1"]
[ECO "D17"]
[WhiteElo "2493"]
[BlackElo "2402"]
[Annotator "ChessBase"]
[PlyCount "116"]
[EventDate "2021.10.27"]
[EventType "swiss"]
[EventCountry "LAT"]
[Tiebreak "Cut1 Buchholz+Sonneborn-Berger (Swiss)"]
[SourceTitle "playchess.com"]
[Source "ChessBase"]
[SourceQuality "1"]
[TimeControl "40/6000+30:20/3000+30:900+30"]

1. d4 {[%emt 0:10:05]} d5 {[%emt 0:10:11]} 2. c4 {[%emt 0:00:06]} c6 {[%emt 0:
00:11]} 3. Nf3 {[%emt 0:00:09]} Nf6 {[%emt 0:00:08]} 4. Nc3 {[%emt 0:00:04]}
dxc4 {[%emt 0:00:10]} 5. a4 {[%emt 0:00:12]} Bf5 {[%emt 0:00:07]} 6. Ne5 {
[%emt 0:00:11]} Nbd7 {[%emt 0:00:12]} 7. Nxc4 {[%emt 0:00:18]} Qc7 {[%emt 0:02:
27]} 8. g3 {[%emt 0:00:15]} e5 {[%emt 0:00:09]} 9. dxe5 {[%emt 0:00:05]} Nxe5 {
[%emt 0:00:07]} 10. Bf4 {[%emt 0:00:13]} Nfd7 {[%emt 0:00:15]} 11. Qc1 {
[%emt 0:00:26]} f6 {[%emt 0:04:36]} 12. Bg2 {[%emt 0:00:23]} Be6 {[%emt 0:02:
14]} 13. Nxe5 {[%emt 0:00:22]} fxe5 {[%emt 0:00:13]} 14. Be3 {[%emt 0:00:18]}
Bb4 {[%emt 0:05:43]} 15. O-O {[%emt 0:02:25]} Qa5 {[%emt 0:01:41]} 16. Ne4 {
[%emt 0:04:40]} O-O {[%emt 0:01:15]} 17. Qc2 {[%emt 0:04:23]} Bd5 {[%emt 0:12:
49]} 18. Rfd1 {[%emt 0:12:01]} Kh8 {[%emt 0:06:04]} 19. Rd3 {[%emt 0:23:31]}
Nf6 {[%emt 0:09:55]} 20. Nxf6 {[%emt 0:00:37]} Rxf6 {[%emt 0:01:57]} 21. Rad1 {
[%emt 0:01:04]} Be6 {[%emt 0:08:49]} 22. Be4 {[%emt 0:02:33]} h6 {[%emt 0:01:
45]} 23. Kg2 {[%emt 0:10:22]} Raf8 {[%emt 0:00:45]} 24. f3 {[%emt 0:00:35]} Rc8
{[%emt 0:08:34]} 25. h4 {[%emt 0:02:11]} b5 {[%emt 0:02:09]} 26. Bc5 {[%emt 0:
08:18]} bxa4 {[%emt 0:08:09]} 27. Bxb4 {[%emt 0:00:16]} Qxb4 {[%emt 0:00:12]}
28. Rd8+ {[%emt 0:00:32]} Rf8 {[%emt 0:00:10]} 29. Rxf8+ {[%emt 0:00:40]} Rxf8
{[%emt 0:00:26]} 30. Bxc6 {[%emt 0:13:37]} Bb3 {[%emt 0:04:47]} 31. Qd2 {
[%emt 0:00:42]} Qb6 {[%emt 0:01:52]} 32. Rc1 {[%emt 0:00:31]} Rd8 {[%emt 0:03:
03]} 33. Qc3 {[%emt 0:01:30]} Rc8 {[%emt 0:08:02]} 34. Qxe5 {[%emt 0:04:41]}
Bg8 {[%emt 0:00:06]} 35. Bd5 {[%emt 0:05:34]} Rxc1 {[%emt 0:00:55]} 36. Qe8 {
[%emt 0:00:02]} Rg1+ {[%emt 0:00:24]} 37. Kh3 {[%emt 0:00:02]} Rxg3+ {[%emt 0:
00:12]} 38. Kxg3 {[%emt 0:00:14]} Qd6+ {[%emt 0:00:05]} 39. Kf2 {[%emt 0:02:47]
} Qxd5 {[%emt 0:00:11]} 40. Qxa4 {[%emt 0:00:06]} a5 {[%emt 0:00:17]} 41. Kf1 {
[%emt 0:51:36]} Bf7 {[%emt 0:51:20]} 42. Qf4 {[%emt 0:00:55]} Bg6 {[%emt 0:00:
16]} 43. Qa4 {[%emt 0:00:00]} Kh7 {[%emt 0:00:00]} 44. b4 {[%emt 0:00:00]} Qc4
{[%emt 0:00:00]} 45. Qxa5 {[%emt 0:00:00]} Qxh4 {[%emt 0:00:00]} 46. b5 {
[%emt 0:00:00]} Bf5 {[%emt 0:00:00]} 47. e4 {[%emt 0:00:00]} Bh3+ {[%emt 0:00:
00]} 48. Ke2 {[%emt 0:00:00]} Qg5 {[%emt 0:00:00]} 49. Qb4 {[%emt 0:00:00]}
Qg2+ {[%emt 0:00:00]} 50. Ke3 {[%emt 0:00:00]} Qg1+ {[%emt 0:00:00]} 51. Kd2 {
[%emt 0:00:00]} Qf2+ {[%emt 0:00:00]} 52. Kc1 {[%emt 0:00:00]} Qb6 {[%emt 0:00:
00]} 53. e5 {[%emt 0:00:00]} Qe3+ {[%emt 0:00:00]} 54. Kb1 {[%emt 0:00:00]}
Bf5+ {[%emt 0:00:00]} 55. Ka2 {[%emt 0:00:00]} Qe2+ {[%emt 0:00:00]} 56. Ka3 {
[%emt 0:00:00]} Qxf3+ {[%emt 0:00:00]} 57. Ka4 {[%emt 0:00:00]} Qa8+ {[%emt 0:
00:00]} 58. Kb3 {[%emt 0:00:00]} Qd5+ {[%emt 0:00:00]} 0-1

[Event "FIDE Womens Grand Swiss 2021"]
[Site "Riga"]
[Date "2021.10.27"]
[Round "1.9"]
[White "Assaubayeva, Bibisara"]
[Black "Saduakassova, Dinara"]
[Result "1/2-1/2"]
[ECO "E12"]
[WhiteElo "2400"]
[BlackElo "2491"]
[Annotator "ChessBase"]
[PlyCount "85"]
[EventDate "2021.10.27"]
[EventType "swiss"]
[EventCountry "LAT"]
[Tiebreak "Cut1 Buchholz+Sonneborn-Berger (Swiss)"]
[SourceTitle "playchess.com"]
[Source "ChessBase"]
[SourceQuality "1"]
[TimeControl "40/6000+30:20/3000+30:900+30"]

1. d4 {[%emt 0:10:08]} Nf6 {[%emt 0:10:05]} 2. c4 {[%emt 0:00:08]} e6 {[%emt 0:
00:04]} 3. Nf3 {[%emt 0:00:07]} b6 {[%emt 0:00:03]} 4. a3 {[%emt 0:00:27]} Bb7
{[%emt 0:00:12]} 5. Nc3 {[%emt 0:00:07]} d5 {[%emt 0:00:04]} 6. cxd5 {[%emt 0:
00:30]} Nxd5 {[%emt 0:00:05]} 7. Qc2 {[%emt 0:00:25]} Nxc3 {[%emt 0:00:06]} 8.
bxc3 {[%emt 0:00:13]} c5 {[%emt 0:00:18]} 9. e4 {[%emt 0:00:38]} Nd7 {[%emt 0:
00:21]} 10. Bd3 {[%emt 0:01:48]} Qc7 {[%emt 0:00:18]} 11. Qb1 {[%emt 0:04:55]}
Be7 {[%emt 0:03:01]} 12. O-O {[%emt 0:00:40]} O-O {[%emt 0:03:10]} 13. Re1 {
[%emt 0:02:45]} Rac8 {[%emt 0:11:22]} 14. Ra2 {[%emt 0:05:09]} h6 {[%emt 0:12:
54]} 15. a4 {[%emt 0:05:29]} Rfd8 {[%emt 0:10:27]} 16. Rae2 {[%emt 0:09:15]}
Nf8 {[%emt 0:08:41]} 17. g3 {[%emt 0:09:05]} Nd7 {[%emt 0:10:12]} 18. a5 {
[%emt 0:09:18]} e5 {[%emt 0:04:49]} 19. axb6 {[%emt 0:06:11]} axb6 {[%emt 0:00:
18]} 20. dxe5 {[%emt 0:03:14]} c4 {[%emt 0:17:40]} 21. Bc2 {[%emt 0:00:44]} Bc5
{[%emt 0:02:38]} 22. Bf4 {[%emt 0:07:46]} g5 {[%emt 0:00:17]} 23. Be3 {[%emt 0:
06:08]} Re8 {[%emt 0:03:34]} 24. Bd4 {[%emt 0:06:30]} g4 {[%emt 0:02:02]} 25.
Nh4 {[%emt 0:02:14]} Nxe5 {[%emt 0:00:08]} 26. h3 {[%emt 0:03:15]} Rcd8 {
[%emt 0:03:40]} 27. Qc1 {[%emt 0:02:44]} Re6 {[%emt 0:00:27]} 28. Qe3 {[%emt 0:
04:45]} Be7 {[%emt 0:02:18]} 29. Bxe5 {[%emt 0:02:06]} Qxe5 {[%emt 0:00:12]}
30. hxg4 {[%emt 0:00:26]} Bxh4 {[%emt 0:03:16]} 31. gxh4 {[%emt 0:00:01]} Rg6 {
[%emt 0:00:06]} 32. f3 {[%emt 0:02:15]} Qg3+ {[%emt 0:00:41]} 33. Rg2 {[%emt 0:
00:01]} Qxh4 {[%emt 0:00:24]} 34. Rb1 {[%emt 0:02:24]} Qf6 {[%emt 0:01:53]} 35.
e5 {[%emt 0:01:59]} Qxf3 {[%emt 0:00:47]} 36. Qxf3 {[%emt 0:00:05]} Bxf3 {
[%emt 0:00:03]} 37. Bxg6 {[%emt 0:00:07]} Bxg2 {[%emt 0:00:11]} 38. Kxg2 {
[%emt 0:00:11]} fxg6 {[%emt 0:00:08]} 39. Rxb6 {[%emt 0:00:03]} Kf7 {[%emt 0:
01:02]} 40. Rf6+ {[%emt 0:00:23]} Kg7 {[%emt 0:00:08]} 41. Rc6 {[%emt 0:50:12]}
Rd5 {[%emt 0:51:47]} 42. Rc7+ {[%emt 0:00:54]} Kf8 {[%emt 0:00:00]} 43. Rxc4 {
[%emt 0:00:00]} 1/2-1/2

[Event "FIDE Womens Grand Swiss 2021"]
[Site "Riga"]
[Date "2021.10.27"]
[Round "1.10"]
[White "Batsiashvili, Nino"]
[Black "Socko, Monika"]
[Result "1-0"]
[ECO "A17"]
[WhiteElo "2484"]
[BlackElo "2397"]
[Annotator "ChessBase"]
[PlyCount "101"]
[EventDate "2021.10.27"]
[EventType "swiss"]
[EventCountry "LAT"]
[Tiebreak "Cut1 Buchholz+Sonneborn-Berger (Swiss)"]
[SourceTitle "playchess.com"]
[Source "ChessBase"]
[SourceQuality "1"]
[TimeControl "40/6000+30:20/3000+30:900+30"]

1. Nf3 {[%emt 0:10:03]} Nf6 {[%emt 0:11:19]} 2. c4 {[%emt 0:00:22]} e6 {
[%emt 0:02:28]} 3. Nc3 {[%emt 0:00:31]} Bb4 {[%emt 0:03:04]} 4. Qc2 {[%emt 0:
00:23]} O-O {[%emt 0:02:34]} 5. a3 {[%emt 0:00:05]} Bxc3 {[%emt 0:02:30]} 6.
Qxc3 {[%emt 0:00:01]} d6 {[%emt 0:04:21]} 7. b4 {[%emt 0:02:17]} b6 {[%emt 0:
01:01]} 8. Bb2 {[%emt 0:05:03]} Bb7 {[%emt 0:00:39]} 9. e3 {[%emt 0:01:39]}
Nbd7 {[%emt 0:00:59]} 10. Be2 {[%emt 0:00:16]} c5 {[%emt 0:01:20]} 11. O-O {
[%emt 0:02:27]} Qe7 {[%emt 0:02:14]} 12. Rfd1 {[%emt 0:01:31]} Rac8 {[%emt 0:
01:24]} 13. d4 {[%emt 0:08:16]} Ne4 {[%emt 0:05:43]} 14. Qe1 {[%emt 0:10:13]}
Ndf6 {[%emt 0:04:00]} 15. Nd2 {[%emt 0:01:58]} Nxd2 {[%emt 0:03:11]} 16. Qxd2 {
[%emt 0:02:52]} Ne4 {[%emt 0:02:51]} 17. Qe1 {[%emt 0:00:05]} Qg5 {[%emt 0:03:
51]} 18. Bf1 {[%emt 0:02:12]} cxd4 {[%emt 0:07:24]} 19. exd4 {[%emt 0:16:31]}
Nf6 {[%emt 0:10:28]} 20. Rd3 {[%emt 0:04:39]} Nh5 {[%emt 0:03:35]} 21. Rc1 {
[%emt 0:03:38]} Rfe8 {[%emt 0:00:19]} 22. Re3 {[%emt 0:02:23]} Nf4 {[%emt 0:04:
22]} 23. Rg3 {[%emt 0:04:28]} Qf6 {[%emt 0:02:25]} 24. Qd2 {[%emt 0:01:08]} e5
{[%emt 0:03:57]} 25. a4 {[%emt 0:01:33]} Nh5 {[%emt 0:06:42]} 26. Ra3 {[%emt 0:
00:46]} Rc7 {[%emt 0:04:28]} 27. a5 {[%emt 0:03:08]} Nf4 {[%emt 0:02:42]} 28.
d5 {[%emt 0:13:32]} Qg5 {[%emt 0:04:53]} 29. Qd1 {[%emt 0:00:28]} Rec8 {
[%emt 0:01:31]} 30. Rg3 {[%emt 0:02:43]} Qh6 {[%emt 0:00:50]} 31. axb6 {
[%emt 0:00:57]} axb6 {[%emt 0:00:05]} 32. Rcc3 {[%emt 0:00:10]} b5 {[%emt 0:01:
09]} 33. c5 {[%emt 0:03:19]} Bxd5 {[%emt 0:01:45]} 34. Bc1 {[%emt 0:01:07]} Bb7
{[%emt 0:02:11]} 35. Bxb5 {[%emt 0:00:09]} dxc5 {[%emt 0:01:26]} 36. Rxc5 {
[%emt 0:00:22]} Qf6 {[%emt 0:00:57]} 37. Rxc7 {[%emt 0:02:10]} Rxc7 {[%emt 0:
00:01]} 38. Bf1 {[%emt 0:00:10]} h5 {[%emt 0:01:12]} 39. Bb2 {[%emt 0:01:39]}
h4 {[%emt 0:02:13]} 40. Bxe5 {[%emt 0:00:19]} Qxe5 {[%emt 0:00:44]} 41. Qd8+ {
[%emt 0:50:06]} Kh7 {[%emt 0:50:01]} 42. Qxh4+ {[%emt 0:00:07]} Kg8 {[%emt 0:
00:00]} 43. Qd8+ {[%emt 0:00:00]} Kh7 {[%emt 0:00:00]} 44. Re3 {[%emt 0:00:00]}
Ne2+ {[%emt 0:00:00]} 45. Rxe2 {[%emt 0:00:00]} Qf4 {[%emt 0:00:00]} 46. Qd3+ {
[%emt 0:00:00]} g6 {[%emt 0:00:00]} 47. Qh3+ {[%emt 0:00:00]} Kg7 {[%emt 0:00:
00]} 48. Re8 {[%emt 0:00:00]} g5 {[%emt 0:00:00]} 49. Qh8+ {[%emt 0:00:00]} Kg6
{[%emt 0:00:00]} 50. Bd3+ {[%emt 0:00:00]} Be4 {[%emt 0:00:00]} 51. Rxe4 {
[%emt 0:00:00]} 1-0